[Event "Early-Titled-Tuesday-Blitz-April-16-2024"]
[Site "Chess.com"]
[Date "2024.04.16"]
[Round "2"]
[White "kleber2007"]
[Black "kekic76"]
[Result "1-0"]
[WhiteElo "2589"]
[BlackElo "2352"]
[TimeControl "180+1"]
[EndTime "8:16:04 PDT"]
[Termination "kleber2007 won by resignation"]

1. Nf3 {[%clk 0:03:00.9]} 1... d5 {[%clk 0:02:59.6]} 2. g3 {[%clk 0:03:00.5]}
2... Bf5 {[%clk 0:02:59]} 3. c4 {[%clk 0:02:58.3]} 3... e6 {[%clk 0:02:56.4]} 4.
Bg2 {[%clk 0:02:58.1]} 4... c6 {[%clk 0:02:56.1]} 5. O-O {[%clk 0:02:57.7]} 5...
Nf6 {[%clk 0:02:56.4]} 6. cxd5 {[%clk 0:02:57.5]} 6... cxd5 {[%clk 0:02:54.3]}
7. Qb3 {[%clk 0:02:56.5]} 7... b6 {[%clk 0:02:38.7]} 8. Nc3 {[%clk 0:02:55.3]}
8... Be7 {[%clk 0:02:38]} 9. d3 {[%clk 0:02:55]} 9... O-O {[%clk 0:02:37.7]} 10.
e4 {[%clk 0:02:42.2]} 10... dxe4 {[%clk 0:02:24.4]} 11. dxe4 {[%clk 0:02:43.1]}
11... Nxe4 {[%clk 0:02:06.8]} 12. Ne5 {[%clk 0:02:02.8]} 12... Bf6 {[%clk
0:01:04]} 13. Rd1 {[%clk 0:01:36.3]} 13... Qc7 {[%clk 0:00:51.4]} 14. Nxe4
{[%clk 0:01:10.7]} 14... Bxe5 {[%clk 0:00:44.8]} 15. Be3 {[%clk 0:01:10.8]}
15... Nc6 {[%clk 0:00:38.6]} 16. Rac1 {[%clk 0:01:10.4]} 16... Rac8 {[%clk
0:00:32.1]} 17. Rxc6 {[%clk 0:01:06.5]} 17... Qxc6 {[%clk 0:00:29]} 18. Nf6+
{[%clk 0:01:06.4]} 18... Bxf6 {[%clk 0:00:29.5]} 19. Bxc6 {[%clk 0:01:07.3]}
19... Rxc6 {[%clk 0:00:30.2]} 20. Rc1 {[%clk 0:01:02.2]} 20... Rfc8 {[%clk
0:00:24.5]} 21. Rxc6 {[%clk 0:00:59.8]} 21... Rxc6 {[%clk 0:00:25.4]} 22. Qa4
{[%clk 0:00:54.1]} 22... Be4 {[%clk 0:00:13.5]} 23. Qxe4 {[%clk 0:00:53.2]} 1-0

[Event "Early-Titled-Tuesday-Blitz-April-16-2024"]
[Site "Chess.com"]
[Date "2024.04.16"]
[Round "2"]
[White "OparinGrigoriy"]
[Black "WilsonPalencia21"]
[Result "1-0"]
[WhiteElo "2975"]
[BlackElo "2611"]
[TimeControl "180+1"]
[EndTime "8:16:05 PDT"]
[Termination "OparinGrigoriy won by resignation"]

1. a3 {[%clk 0:03:00.9]} 1... g6 {[%clk 0:02:59.3]} 2. h4 {[%clk 0:02:58.6]}
2... h5 {[%clk 0:02:58.5]} 3. Nf3 {[%clk 0:02:58.2]} 3... Bg7 {[%clk 0:02:58.1]}
4. e4 {[%clk 0:02:58.6]} 4... c5 {[%clk 0:02:57.4]} 5. Nc3 {[%clk 0:02:57.9]}
5... Nc6 {[%clk 0:02:57.6]} 6. b4 {[%clk 0:02:51.6]} 6... cxb4 {[%clk
0:02:57.2]} 7. axb4 {[%clk 0:02:52.5]} 7... Nxb4 {[%clk 0:02:57.5]} 8. Ba3
{[%clk 0:02:47.4]} 8... Nc6 {[%clk 0:02:56.4]} 9. d4 {[%clk 0:02:47.8]} 9... d6
{[%clk 0:02:53.7]} 10. Bc4 {[%clk 0:02:42.2]} 10... Nh6 {[%clk 0:02:45.4]} 11.
Ne2 {[%clk 0:02:38.7]} 11... O-O {[%clk 0:02:42.9]} 12. c3 {[%clk 0:02:39.1]}
12... Bg4 {[%clk 0:02:37.6]} 13. Ng5 {[%clk 0:02:38.3]} 13... Bxe2 {[%clk
0:02:30.8]} 14. Qxe2 {[%clk 0:02:39.2]} 14... e6 {[%clk 0:02:28.6]} 15. O-O
{[%clk 0:02:37.1]} 15... Re8 {[%clk 0:02:18.8]} 16. Rab1 {[%clk 0:02:32.5]}
16... Qd7 {[%clk 0:02:12.1]} 17. Qf3 {[%clk 0:02:29.5]} 17... Rac8 {[%clk
0:02:05.2]} 18. Ba2 {[%clk 0:02:28.4]} 18... f6 {[%clk 0:01:53.1]} 19. Nh3
{[%clk 0:02:26.6]} 19... Kh7 {[%clk 0:01:51.6]} 20. Rfd1 {[%clk 0:02:17.5]}
20... Ng4 {[%clk 0:01:43.5]} 21. Nf4 {[%clk 0:02:16.8]} 21... Bh6 {[%clk
0:01:34.9]} 22. Nxe6 {[%clk 0:02:13.4]} 22... Rxe6 {[%clk 0:01:33]} 23. Bxe6
{[%clk 0:02:14.3]} 23... Qxe6 {[%clk 0:01:31.8]} 24. d5 {[%clk 0:02:15]} 24...
Qe7 {[%clk 0:01:25.3]} 25. dxc6 {[%clk 0:02:11.4]} 25... Rxc6 {[%clk 0:01:25.2]}
26. Qd3 {[%clk 0:01:59.6]} 26... f5 {[%clk 0:01:10.9]} 27. exf5 {[%clk
0:01:54.4]} 27... Qxh4 {[%clk 0:01:10]} 28. fxg6+ {[%clk 0:01:54.5]} 28... Kh8
{[%clk 0:01:09.9]} 29. Qd4+ {[%clk 0:01:27.9]} 29... Bg7 {[%clk 0:01:06.3]} 30.
Qf4 {[%clk 0:01:27.4]} 30... Rc4 {[%clk 0:00:44]} 31. Qg3 {[%clk 0:01:25.3]}
31... Qg5 {[%clk 0:00:27.8]} 32. Rxb7 {[%clk 0:01:21.4]} 32... Be5 {[%clk
0:00:25.7]} 33. Qf3 {[%clk 0:01:10.1]} 33... Rf4 {[%clk 0:00:22.9]} 34. Rh7+
{[%clk 0:01:10.2]} 1-0

[Event "Early-Titled-Tuesday-Blitz-April-16-2024"]
[Site "Chess.com"]
[Date "2024.04.16"]
[Round "2"]
[White "mapleaff"]
[Black "Bastiandash"]
[Result "0-1"]
[WhiteElo "2323"]
[BlackElo "2536"]
[TimeControl "180+1"]
[EndTime "8:16:05 PDT"]
[Termination "Bastiandash won by checkmate"]

1. d4 {[%clk 0:02:57.5]} 1... g6 {[%clk 0:02:58.7]} 2. c4 {[%clk 0:02:56.8]}
2... Bg7 {[%clk 0:02:55.8]} 3. Nc3 {[%clk 0:02:56.8]} 3... d6 {[%clk 0:02:56.4]}
4. e4 {[%clk 0:02:56.7]} 4... Nd7 {[%clk 0:02:57.3]} 5. Nf3 {[%clk 0:02:49.5]}
5... e5 {[%clk 0:02:57.5]} 6. Be3 {[%clk 0:02:41.6]} 6... Ne7 {[%clk 0:02:53.1]}
7. Be2 {[%clk 0:02:26.1]} 7... O-O {[%clk 0:02:52.8]} 8. O-O {[%clk 0:02:24.3]}
8... h6 {[%clk 0:02:51.3]} 9. Qd2 {[%clk 0:02:20.8]} 9... Kh7 {[%clk 0:02:51.4]}
10. dxe5 {[%clk 0:02:16.4]} 10... Nxe5 {[%clk 0:02:49]} 11. Nxe5 {[%clk
0:02:16.1]} 11... dxe5 {[%clk 0:02:49.9]} 12. Qxd8 {[%clk 0:02:13.2]} 12... Rxd8
{[%clk 0:02:49.7]} 13. Rfd1 {[%clk 0:02:13.7]} 13... Be6 {[%clk 0:02:42.2]} 14.
h3 {[%clk 0:02:09.3]} 14... c6 {[%clk 0:02:41.5]} 15. b3 {[%clk 0:02:03.1]}
15... f5 {[%clk 0:02:36.4]} 16. f3 {[%clk 0:02:01.6]} 16... h5 {[%clk
0:02:36.2]} 17. Bg5 {[%clk 0:01:57.6]} 17... Rxd1+ {[%clk 0:02:23.6]} 18. Rxd1
{[%clk 0:01:56.6]} 18... Re8 {[%clk 0:02:24.5]} 19. Rd6 {[%clk 0:01:47]} 19...
Nc8 {[%clk 0:02:23.6]} 20. Rd2 {[%clk 0:01:35.5]} 20... Bh6 {[%clk 0:02:19]} 21.
Bxh6 {[%clk 0:01:33.2]} 21... Kxh6 {[%clk 0:02:19.9]} 22. Nd1 {[%clk 0:01:12.2]}
22... Kg5 {[%clk 0:02:16.5]} 23. Kf2 {[%clk 0:00:59.3]} 23... h4 {[%clk
0:02:12.7]} 24. Ne3 {[%clk 0:00:39.7]} 24... Kf6 {[%clk 0:01:56.6]} 25. g3
{[%clk 0:00:36.6]} 25... hxg3+ {[%clk 0:01:56.2]} 26. Kxg3 {[%clk 0:00:37.5]}
26... f4+ {[%clk 0:01:56.7]} 27. Kf2 {[%clk 0:00:34.4]} 27... fxe3+ {[%clk
0:01:57.6]} 28. Kxe3 {[%clk 0:00:35.3]} 28... Bxh3 {[%clk 0:01:58.1]} 29. f4
{[%clk 0:00:33.6]} 29... exf4+ {[%clk 0:01:53.3]} 30. Kxf4 {[%clk 0:00:34.5]}
30... g5+ {[%clk 0:01:53.2]} 31. Kg3 {[%clk 0:00:34.3]} 31... Be6 {[%clk
0:01:52.4]} 32. Bd3 {[%clk 0:00:33.3]} 32... Ke5 {[%clk 0:01:34.1]} 33. Kf3
{[%clk 0:00:28.9]} 33... Nd6 {[%clk 0:01:33.4]} 34. Ke3 {[%clk 0:00:26.5]} 34...
Rf8 {[%clk 0:01:33.6]} 35. Rg2 {[%clk 0:00:24]} 35... g4 {[%clk 0:01:33.3]} 36.
Be2 {[%clk 0:00:23.3]} 36... Rf4 {[%clk 0:01:32.4]} 37. Bd3 {[%clk 0:00:20.9]}
37... Nxe4 {[%clk 0:01:32.4]} 38. Bxe4 {[%clk 0:00:20.7]} 38... Rxe4+ {[%clk
0:01:33.3]} 39. Kd3 {[%clk 0:00:21.4]} 39... Bf5 {[%clk 0:01:33.6]} 40. Kc3
{[%clk 0:00:21.2]} 40... Re3+ {[%clk 0:01:31.2]} 41. Kb4 {[%clk 0:00:20.8]}
41... g3 {[%clk 0:01:31.2]} 42. Kc5 {[%clk 0:00:19.7]} 42... Be4 {[%clk
0:01:31.4]} 43. Rg1 {[%clk 0:00:19.6]} 43... g2 {[%clk 0:01:31.9]} 44. b4 {[%clk
0:00:19.5]} 44... b6# {[%clk 0:01:30.7]} 0-1

[Event "Early-Titled-Tuesday-Blitz-April-16-2024"]
[Site "Chess.com"]
[Date "2024.04.16"]
[Round "2"]
[White "KanalSzachowy"]
[Black "Kobalia"]
[Result "0-1"]
[WhiteElo "2417"]
[BlackElo "2805"]
[TimeControl "180+1"]
[EndTime "8:16:09 PDT"]
[Termination "Kobalia won by checkmate"]

1. e4 {[%clk 0:03:00.9]} 1... c5 {[%clk 0:02:58.1]} 2. Nc3 {[%clk 0:02:59.1]}
2... Nc6 {[%clk 0:02:57.4]} 3. Bb5 {[%clk 0:02:59.1]} 3... Nd4 {[%clk
0:02:57.2]} 4. Nf3 {[%clk 0:02:59.5]} 4... Nxb5 {[%clk 0:02:57.1]} 5. Nxb5
{[%clk 0:03:00.4]} 5... d6 {[%clk 0:02:56.6]} 6. d4 {[%clk 0:03:00.8]} 6... cxd4
{[%clk 0:02:56.7]} 7. Qxd4 {[%clk 0:03:01.7]} 7... Bd7 {[%clk 0:02:49.9]} 8. Nc3
{[%clk 0:02:57.3]} 8... Bc6 {[%clk 0:02:49.5]} 9. Bg5 {[%clk 0:02:54.5]} 9... h6
{[%clk 0:02:47.2]} 10. Bh4 {[%clk 0:02:53.9]} 10... Qc7 {[%clk 0:02:23.4]} 11.
O-O {[%clk 0:02:49.1]} 11... e5 {[%clk 0:02:23.1]} 12. Qd3 {[%clk 0:02:43.4]}
12... Be7 {[%clk 0:02:23]} 13. Bg3 {[%clk 0:02:40.3]} 13... Nf6 {[%clk 0:02:21]}
14. Rfe1 {[%clk 0:02:38.9]} 14... O-O {[%clk 0:02:20]} 15. Nh4 {[%clk 0:02:27]}
15... g6 {[%clk 0:02:14.5]} 16. Qd2 {[%clk 0:02:18.2]} 16... Kg7 {[%clk
0:02:12.2]} 17. f4 {[%clk 0:02:10.6]} 17... Nh5 {[%clk 0:02:10.2]} 18. f5 {[%clk
0:01:50.9]} 18... Nxg3 {[%clk 0:01:57.8]} 19. hxg3 {[%clk 0:01:49.9]} 19... b5
{[%clk 0:01:54.5]} 20. Rf1 {[%clk 0:01:24.7]} 20... Bg5 {[%clk 0:01:45.8]} 21.
Qe2 {[%clk 0:01:09.7]} 21... b4 {[%clk 0:01:45.3]} 22. Nd1 {[%clk 0:00:51.3]}
22... Qb6+ {[%clk 0:01:44.4]} 23. Kh1 {[%clk 0:00:44.9]} 23... Bb5 {[%clk
0:01:44.3]} 24. Qf3 {[%clk 0:00:22.6]} 24... Bxf1 {[%clk 0:01:42.9]} 25. Qxf1
{[%clk 0:00:22.1]} 25... Rac8 {[%clk 0:01:42.3]} 26. c3 {[%clk 0:00:18.4]} 26...
bxc3 {[%clk 0:01:40.7]} 27. Nxc3 {[%clk 0:00:19.3]} 27... Qxb2 {[%clk 0:01:39]}
28. Nd5 {[%clk 0:00:19.6]} 28... Qxa1 {[%clk 0:01:20.4]} 29. f6+ {[%clk
0:00:17.8]} 29... Kh7 {[%clk 0:01:18.9]} 30. Kh2 {[%clk 0:00:12.5]} 30... Qxf1
{[%clk 0:01:16.8]} 31. Ne7 {[%clk 0:00:12.5]} 31... Rc1 {[%clk 0:01:14.9]} 32.
g4 {[%clk 0:00:11.9]} 32... Bf4+ {[%clk 0:01:14.1]} 33. Kh3 {[%clk 0:00:11.5]}
33... Qh1# {[%clk 0:01:15]} 0-1

[Event "Early-Titled-Tuesday-Blitz-April-16-2024"]
[Site "Chess.com"]
[Date "2024.04.16"]
[Round "2"]
[White "TERMINATOR_PC"]
[Black "SchmakAttack"]
[Result "1-0"]
[WhiteElo "2588"]
[BlackElo "2823"]
[TimeControl "180+1"]
[EndTime "8:16:12 PDT"]
[Termination "TERMINATOR_PC won by resignation"]

1. e4 {[%clk 0:03:00.9]} 1... e5 {[%clk 0:02:58.8]} 2. Nf3 {[%clk 0:02:55]} 2...
Nc6 {[%clk 0:02:58.9]} 3. Bc4 {[%clk 0:02:54.5]} 3... Bc5 {[%clk 0:02:57.5]} 4.
O-O {[%clk 0:02:54]} 4... Nf6 {[%clk 0:02:57.5]} 5. d3 {[%clk 0:02:51.7]} 5...
d6 {[%clk 0:02:51.1]} 6. c3 {[%clk 0:02:46.5]} 6... a6 {[%clk 0:02:50.3]} 7.
Nbd2 {[%clk 0:02:43.6]} 7... Ba7 {[%clk 0:02:46.9]} 8. Re1 {[%clk 0:02:14]} 8...
Ng4 {[%clk 0:02:10.3]} 9. Re2 {[%clk 0:02:13.3]} 9... O-O {[%clk 0:02:09.2]} 10.
h3 {[%clk 0:02:10.7]} 10... Nh6 {[%clk 0:02:09.7]} 11. Nf1 {[%clk 0:02:07.3]}
11... Kh8 {[%clk 0:02:09.7]} 12. Bxh6 {[%clk 0:02:04.4]} 12... gxh6 {[%clk
0:02:10.6]} 13. Ng3 {[%clk 0:02:03.9]} 13... f5 {[%clk 0:02:06.7]} 14. exf5
{[%clk 0:02:01.5]} 14... Bxf5 {[%clk 0:02:07.6]} 15. Nxf5 {[%clk 0:01:56.3]}
15... Rxf5 {[%clk 0:02:08.5]} 16. d4 {[%clk 0:01:56.3]} 16... exd4 {[%clk
0:01:51.4]} 17. Nxd4 {[%clk 0:01:53]} 17... Nxd4 {[%clk 0:01:50.6]} 18. cxd4
{[%clk 0:01:53.9]} 18... Qh4 {[%clk 0:01:50.7]} 19. Rd2 {[%clk 0:01:37.1]} 19...
Rxf2 {[%clk 0:00:54.7]} 20. Rxf2 {[%clk 0:01:36.6]} 20... Bxd4 {[%clk
0:00:54.6]} 21. Qd2 {[%clk 0:01:11.2]} 21... Bxf2+ {[%clk 0:00:40.7]} 22. Qxf2
{[%clk 0:01:12.1]} 22... Qxc4 {[%clk 0:00:41]} 23. Qf6+ {[%clk 0:01:09.6]} 23...
Kg8 {[%clk 0:00:41.5]} 24. Rf1 {[%clk 0:01:08.1]} 24... Qe2 {[%clk 0:00:09.3]}
25. Rf3 {[%clk 0:00:49.4]} 1-0

[Event "Early-Titled-Tuesday-Blitz-April-16-2024"]
[Site "Chess.com"]
[Date "2024.04.16"]
[Round "2"]
[White "GelmanAlexander"]
[Black "a-z30"]
[Result "1-0"]
[WhiteElo "2685"]
[BlackElo "2389"]
[TimeControl "180+1"]
[EndTime "8:16:13 PDT"]
[Termination "GelmanAlexander won on time"]

1. c4 {[%clk 0:03:00.9]} 1... e6 {[%clk 0:02:58.9]} 2. Nf3 {[%clk 0:03:01.1]}
2... d5 {[%clk 0:02:59.2]} 3. d3 {[%clk 0:03:01.4]} 3... Nf6 {[%clk 0:02:59.3]}
4. Nbd2 {[%clk 0:03:02]} 4... c5 {[%clk 0:02:54]} 5. e3 {[%clk 0:03:02.4]} 5...
Nc6 {[%clk 0:02:52.5]} 6. a3 {[%clk 0:03:03]} 6... Be7 {[%clk 0:02:43.8]} 7. b3
{[%clk 0:03:03]} 7... O-O {[%clk 0:02:40]} 8. Bb2 {[%clk 0:03:03.2]} 8... dxc4
{[%clk 0:02:18.8]} 9. bxc4 {[%clk 0:03:02.5]} 9... b6 {[%clk 0:02:05.1]} 10. Qc2
{[%clk 0:02:58.1]} 10... Bb7 {[%clk 0:02:03.8]} 11. Rg1 {[%clk 0:02:58.2]} 11...
Nd7 {[%clk 0:01:50]} 12. g4 {[%clk 0:02:58.4]} 12... Bf6 {[%clk 0:01:49.7]} 13.
g5 {[%clk 0:02:59]} 13... Bxb2 {[%clk 0:01:48.5]} 14. Qxb2 {[%clk 0:02:59.9]}
14... Qc7 {[%clk 0:01:36.4]} 15. h4 {[%clk 0:03:00.2]} 15... Nce5 {[%clk
0:01:35]} 16. Be2 {[%clk 0:02:45.7]} 16... Nxf3+ {[%clk 0:01:31.8]} 17. Bxf3
{[%clk 0:02:45.1]} 17... Rad8 {[%clk 0:01:23.8]} 18. Bxb7 {[%clk 0:02:42.9]}
18... Qxb7 {[%clk 0:01:23.2]} 19. h5 {[%clk 0:02:41.6]} 19... Qc7 {[%clk
0:01:10.7]} 20. f4 {[%clk 0:02:30.2]} 20... e5 {[%clk 0:00:45]} 21. f5 {[%clk
0:02:20.1]} 21... f6 {[%clk 0:00:44.2]} 22. Ne4 {[%clk 0:02:10.2]} 22... Kh8
{[%clk 0:00:37.7]} 23. Ke2 {[%clk 0:01:50]} 23... Qc6 {[%clk 0:00:25.1]} 24.
Raf1 {[%clk 0:01:29.1]} 24... fxg5 {[%clk 0:00:22.9]} 25. Nxg5 {[%clk
0:01:20.5]} 25... Rde8 {[%clk 0:00:18.1]} 26. h6 {[%clk 0:01:20.5]} 26... Qf6
{[%clk 0:00:08.3]} 27. hxg7+ {[%clk 0:01:19.3]} 27... Qxg7 {[%clk 0:00:08.3]}
28. Ne6 {[%clk 0:01:15.5]} 28... Qh6 {[%clk 0:00:08.4]} 29. Nxf8 {[%clk
0:01:14.3]} 29... Qh2+ {[%clk 0:00:08.2]} 30. Rf2 {[%clk 0:01:12.9]} 30... Qxg1
{[%clk 0:00:08]} 31. Nxd7 {[%clk 0:01:12.6]} 31... h5 {[%clk 0:00:02.2]} 32.
Nxe5 {[%clk 0:01:11]} 32... Kh7 {[%clk 0:00:01.2]} 33. f6 {[%clk 0:01:10.2]} 1-0

[Event "Early-Titled-Tuesday-Blitz-April-16-2024"]
[Site "Chess.com"]
[Date "2024.04.16"]
[Round "2"]
[White "FREZZY23"]
[Black "UnTucopalaTimba"]
[Result "1-0"]
[WhiteElo "2435"]
[BlackElo "1998"]
[TimeControl "180+1"]
[EndTime "8:16:13 PDT"]
[Termination "FREZZY23 won by resignation"]

1. Nf3 {[%clk 0:02:59.7]} 1... d5 {[%clk 0:02:58.2]} 2. g3 {[%clk 0:02:58.7]}
2... Nf6 {[%clk 0:02:57.2]} 3. Bg2 {[%clk 0:02:57.1]} 3... e6 {[%clk 0:02:52.9]}
4. O-O {[%clk 0:02:56.5]} 4... c5 {[%clk 0:02:51.5]} 5. d4 {[%clk 0:02:56.1]}
5... Nc6 {[%clk 0:02:50.3]} 6. c4 {[%clk 0:02:55.8]} 6... dxc4 {[%clk
0:02:46.5]} 7. Qa4 {[%clk 0:02:54.4]} 7... cxd4 {[%clk 0:02:43.9]} 8. Nxd4
{[%clk 0:02:51.6]} 8... Bd7 {[%clk 0:02:36.4]} 9. Nxc6 {[%clk 0:02:49.5]} 9...
bxc6 {[%clk 0:02:34.2]} 10. Bxc6 {[%clk 0:02:47.2]} 10... Rc8 {[%clk 0:02:32.9]}
11. Bxd7+ {[%clk 0:02:46.5]} 11... Qxd7 {[%clk 0:02:30.7]} 12. Qxd7+ {[%clk
0:02:43.8]} 12... Kxd7 {[%clk 0:02:30.7]} 13. Nc3 {[%clk 0:02:44.4]} 13... Bc5
{[%clk 0:02:21.7]} 14. Rd1+ {[%clk 0:02:42.7]} 14... Ke7 {[%clk 0:02:17.8]} 15.
Bg5 {[%clk 0:02:41.7]} 15... h6 {[%clk 0:02:16]} 16. Bxf6+ {[%clk 0:02:40.7]}
16... gxf6 {[%clk 0:02:15.3]} 17. Rac1 {[%clk 0:02:38.5]} 17... Rhd8 {[%clk
0:02:07.8]} 18. Rxd8 {[%clk 0:02:33.4]} 18... Kxd8 {[%clk 0:02:01.4]} 19. Ne4
{[%clk 0:02:22.5]} 19... Be7 {[%clk 0:01:58.7]} 20. Nd2 {[%clk 0:02:22.4]} 20...
c3 {[%clk 0:01:52.3]} 21. Rxc3 {[%clk 0:02:10.2]} 21... Rb8 {[%clk 0:01:47.1]}
22. b3 {[%clk 0:02:09.2]} 22... Bb4 {[%clk 0:01:44.3]} 23. Rd3+ {[%clk
0:02:08.5]} 23... Ke7 {[%clk 0:01:43.1]} 24. Nc4 {[%clk 0:02:04.8]} 24... Bc5
{[%clk 0:01:32]} 25. Kg2 {[%clk 0:02:03.6]} 25... Rc8 {[%clk 0:01:23.8]} 26. f4
{[%clk 0:02:01.7]} 26... h5 {[%clk 0:01:21]} 27. Kf3 {[%clk 0:02:01.1]} 27...
Rc6 {[%clk 0:01:19.1]} 28. e4 {[%clk 0:02:00.7]} 28... Ra6 {[%clk 0:01:17.9]}
29. a4 {[%clk 0:02:00.2]} 29... Bb4 {[%clk 0:01:15.2]} 30. e5 {[%clk 0:01:59.6]}
30... Rc6 {[%clk 0:01:10.2]} 31. Ke4 {[%clk 0:01:48.8]} 31... f5+ {[%clk
0:01:09.5]} 32. Kf3 {[%clk 0:01:48.6]} 32... Rc8 {[%clk 0:01:07.4]} 33. Kg2
{[%clk 0:01:45.9]} 33... Rg8 {[%clk 0:01:05.8]} 34. Kh3 {[%clk 0:01:45.5]} 34...
Rg4 {[%clk 0:01:05]} 35. Nd6 {[%clk 0:01:42.2]} 35... f6 {[%clk 0:00:56.8]} 36.
Nc8+ {[%clk 0:01:41.4]} 36... Kf7 {[%clk 0:00:52.4]} 37. exf6 {[%clk 0:01:41.8]}
37... Kxf6 {[%clk 0:00:50.7]} 38. Nxa7 {[%clk 0:01:38.4]} 38... h4 {[%clk
0:00:48.9]} 39. Nc6 {[%clk 0:01:36]} 39... Be1 {[%clk 0:00:44.6]} 40. Ne5 {[%clk
0:01:34.8]} 40... Rg8 {[%clk 0:00:39.3]} 41. Rd7 {[%clk 0:01:34.5]} 41... Rg7
{[%clk 0:00:33.7]} 42. Rxg7 {[%clk 0:01:34]} 42... Kxg7 {[%clk 0:00:33.7]} 43.
Nc6 {[%clk 0:01:32.8]} 43... hxg3 {[%clk 0:00:31.3]} 44. hxg3 {[%clk 0:01:31.4]}
44... Kf6 {[%clk 0:00:31.7]} 45. b4 {[%clk 0:01:30.8]} 45... Kf7 {[%clk
0:00:29.6]} 46. a5 {[%clk 0:01:30.7]} 46... Ke8 {[%clk 0:00:29.5]} 47. a6 {[%clk
0:01:31.1]} 47... Kd7 {[%clk 0:00:29.7]} 48. a7 {[%clk 0:01:31.1]} 1-0

[Event "Early-Titled-Tuesday-Blitz-April-16-2024"]
[Site "Chess.com"]
[Date "2024.04.16"]
[Round "2"]
[White "NikFil2013"]
[Black "SmirnovTimofey2000"]
[Result "0-1"]
[WhiteElo "2416"]
[BlackElo "1966"]
[TimeControl "180+1"]
[EndTime "8:16:15 PDT"]
[Termination "SmirnovTimofey2000 won by resignation"]

1. d4 {[%clk 0:03:00.9]} 1... d5 {[%clk 0:02:59.8]} 2. c4 {[%clk 0:03:01.4]}
2... c6 {[%clk 0:03:00.4]} 3. cxd5 {[%clk 0:03:01.5]} 3... cxd5 {[%clk
0:03:00.5]} 4. Bf4 {[%clk 0:03:02.1]} 4... Nc6 {[%clk 0:02:59.5]} 5. e3 {[%clk
0:03:02.3]} 5... Nf6 {[%clk 0:02:58.8]} 6. Nc3 {[%clk 0:03:02.7]} 6... Bg4
{[%clk 0:02:57.5]} 7. Qb3 {[%clk 0:02:57.6]} 7... Qb6 {[%clk 0:02:54.4]} 8. Qa4
{[%clk 0:02:58.3]} 8... a6 {[%clk 0:02:45.4]} 9. b3 {[%clk 0:01:47.6]} 9... e6
{[%clk 0:02:39.1]} 10. Bd3 {[%clk 0:01:40.7]} 10... Be7 {[%clk 0:02:35.3]} 11.
Nge2 {[%clk 0:01:40.1]} 11... O-O {[%clk 0:02:32.6]} 12. O-O {[%clk 0:01:40]}
12... Rac8 {[%clk 0:02:24.9]} 13. Rac1 {[%clk 0:01:36.1]} 13... Qb4 {[%clk
0:02:24.4]} 14. Qxb4 {[%clk 0:01:33.7]} 14... Nxb4 {[%clk 0:02:25.3]} 15. Bb1
{[%clk 0:01:34.3]} 15... Rc6 {[%clk 0:02:02.6]} 16. a3 {[%clk 0:01:30.2]} 16...
Bxe2 {[%clk 0:01:44.1]} 17. Nxe2 {[%clk 0:01:27.9]} 17... Rxc1 {[%clk
0:01:41.9]} 18. Rxc1 {[%clk 0:01:23.5]} 18... Nc6 {[%clk 0:01:39.5]} 19. b4
{[%clk 0:01:24.1]} 19... Rc8 {[%clk 0:01:31]} 20. h3 {[%clk 0:01:18.6]} 20... b5
{[%clk 0:01:27.7]} 21. Rc3 {[%clk 0:01:12.4]} 21... Na7 {[%clk 0:01:26.8]} 22.
Rxc8+ {[%clk 0:00:57.1]} 22... Nxc8 {[%clk 0:01:27]} 23. Bc7 {[%clk 0:00:58]}
23... Kf8 {[%clk 0:01:20.6]} 24. Nc1 {[%clk 0:00:56.9]} 24... Ke8 {[%clk
0:01:20.4]} 25. Nd3 {[%clk 0:00:49.8]} 25... Kd7 {[%clk 0:01:18.4]} 26. Bh2
{[%clk 0:00:39.9]} 26... Ne4 {[%clk 0:01:18.2]} 27. Ne5+ {[%clk 0:00:38.7]}
27... Ke8 {[%clk 0:01:15.2]} 28. Bxe4 {[%clk 0:00:39.6]} 28... dxe4 {[%clk
0:01:15.4]} 29. Nc6 {[%clk 0:00:40]} 29... Nd6 {[%clk 0:01:03.6]} 30. Nxe7
{[%clk 0:00:28.9]} 30... Kxe7 {[%clk 0:01:03]} 31. Kf1 {[%clk 0:00:22.7]} 31...
Nc4 {[%clk 0:01:03.1]} 32. Bc7 {[%clk 0:00:22.6]} 32... Nxa3 {[%clk 0:01:00.1]}
33. Ke2 {[%clk 0:00:23.5]} 33... Nc2 {[%clk 0:00:57.1]} 34. Kf1 {[%clk
0:00:24.4]} 34... Nxb4 {[%clk 0:00:57.2]} 35. Ke2 {[%clk 0:00:25.3]} 35... Nd5
{[%clk 0:00:57.3]} 36. Kd2 {[%clk 0:00:26.2]} 36... Nxc7 {[%clk 0:00:57.5]} 37.
Ke2 {[%clk 0:00:27.1]} 37... Kd6 {[%clk 0:00:57.9]} 0-1

[Event "Early-Titled-Tuesday-Blitz-April-16-2024"]
[Site "Chess.com"]
[Date "2024.04.16"]
[Round "2"]
[White "SkinnyPuppy8"]
[Black "Eloist"]
[Result "0-1"]
[WhiteElo "2213"]
[BlackElo "2494"]
[TimeControl "180+1"]
[EndTime "8:16:16 PDT"]
[Termination "Eloist won by resignation"]

1. e4 {[%clk 0:02:59.9]} 1... e6 {[%clk 0:02:56.5]} 2. d3 {[%clk 0:02:59.1]}
2... d5 {[%clk 0:02:56.3]} 3. Nd2 {[%clk 0:02:59.2]} 3... Nf6 {[%clk 0:02:55.8]}
4. Ngf3 {[%clk 0:02:59.6]} 4... b6 {[%clk 0:02:55.8]} 5. g3 {[%clk 0:02:59.6]}
5... dxe4 {[%clk 0:02:55.6]} 6. Ng5 {[%clk 0:02:59.6]} 6... exd3 {[%clk
0:02:46.6]} 7. Bg2 {[%clk 0:02:59.7]} 7... c6 {[%clk 0:02:42.9]} 8. O-O {[%clk
0:02:58.5]} 8... Be7 {[%clk 0:02:35.2]} 9. Nc4 {[%clk 0:02:27.2]} 9... dxc2
{[%clk 0:02:29.1]} 10. Qxc2 {[%clk 0:02:28.1]} 10... h6 {[%clk 0:01:47.6]} 11.
Rd1 {[%clk 0:02:27.2]} 11... Nd5 {[%clk 0:01:44.8]} 12. Nxf7 {[%clk 0:02:16.7]}
12... Kxf7 {[%clk 0:01:43.3]} 13. Ne5+ {[%clk 0:02:16.1]} 13... Kg8 {[%clk
0:01:27.9]} 14. Qg6 {[%clk 0:02:07.3]} 14... Qf8 {[%clk 0:01:19.8]} 15. Bh3
{[%clk 0:01:56.9]} 15... Bf6 {[%clk 0:01:14.6]} 16. Bf4 {[%clk 0:01:40.1]} 16...
Bxe5 {[%clk 0:00:48.2]} 17. Bxe5 {[%clk 0:01:37.1]} 17... Qf7 {[%clk 0:00:46.6]}
18. Qg4 {[%clk 0:01:15.8]} 18... Nd7 {[%clk 0:00:37.9]} 19. Bd4 {[%clk
0:00:47.7]} 19... e5 {[%clk 0:00:29.7]} 20. Be3 {[%clk 0:00:38.8]} 20... N7f6
{[%clk 0:00:27.6]} 21. Qxc8+ {[%clk 0:00:34.4]} 21... Rxc8 {[%clk 0:00:26.8]}
22. Bxc8 {[%clk 0:00:33.3]} 22... Kh7 {[%clk 0:00:26.7]} 23. Bd2 {[%clk
0:00:29.6]} 23... Rxc8 {[%clk 0:00:26.1]} 0-1